Cogmind - Beta 14 @@@ ROGUE MODE // 2025.03.04 @ 17:32:30 Player: AlStar Result: Destroyed by as-15426 with Assembled Rifle Performance ------------- Evolutions (0) 0 Regions Visited (3) 600 Robots Destroyed (8) 40 Value Destroyed (192) 192 Prototype IDs (0) 0 Alien Tech Used (0) 0 Bonus (-180) -180 TOTAL SCORE: 652 Bonus ------- Friendly Fire -180 Cogmind --------- Core Integrity 0/250 Matter 300/300 Energy 100/100 System Corruption 0% Temperature Cool (0) Movement Core (50) Location -10/Exiles Parts ------- > --- POWER (1) -------- (None) > --- PROPULSION (2) --- (None) > --- UTILITY (2) ------ (None) > --- WEAPON (2) ------- Makeshift Hammer > --- INVENTORY (5) ---- Light Ion Engine Shield Generator Spread Laser Particle Cannon Particle Cannon Peak State ------------ > --- POWER ------------ Ion Engine > --- PROPULSION ------- Wheel Wheel > --- UTILITY ---------- Small Storage Unit > --- WEAPON ----------- Maul Maul > --- INVENTORY -------- Light Ion Engine Medium Laser Particle Cannon Particle Cannon Particle Cannon Particle Cannon Assault Rifle [Rating: 9] Favorites ----------- Power Ion Engine Engine Ion Engine Propulsion Hover Unit Wheel Wheel Hover Unit Hover Unit Utility Small Storage Unit Storage Small Storage Unit Weapon Maul Energy Gun Medium Laser Ballistic Gun Assault Rifle Impact Weapon Maul Build | -11 -10 -10 -10 ------- Run | Yrd Mat Min Exi Slots Evolved . | . . . . Power . | . . . . Propulsion . | . . . . Utility . | . . . . Weapon . | . . . . Parts Attached 11 | 6 4 1 . Power 1 | 1 . . . Engine 1 | 1 . . . Core . | . . . . Reactor . | . . . . Propulsion 4 | 2 2 . . Treads . | . . . . Leg . | . . . . Wheel 2 | 2 . . . Hover 2 | . 2 . . Flight . | . . . . Utility 1 | 1 . . . Device . | . . . . Storage 1 | 1 . . . Processor . | . . . . Hackware . | . . . . Protection . | . . . . Artifact . | . . . . Weapon 5 | 2 2 1 . Energy Gun 1 | 1 . . . Energy Cannon . | . . . . Ballistic Gun 1 | 1 . . . Ballistic Cannon . | . . . . Launcher . | . . . . Special Weapon . | . . . . Impact Weapon 3 | . 2 1 . Slashing Weapon . | . . . . Piercing Weapon . | . . . . Special Melee Weapon . | . . . . Unidentified Prototypes . | . . . . Parts Lost 4 | . . 1 3 Power 1 | . . . 1 Propulsion 2 | . . 1 1 Utility . | . . . . Weapon 1 | . . . 1 Highest Loss Streak 3 | . . 1 3 To Critical Strikes 1 | . . . 1 Average Slot Usage (%) 65 | . 82 62 52 Engine 13 | . 14 14 12 Wheel 5 | . 22 . . Hover 14 | . 3 19 11 Storage 2 | . 12 . . Energy Gun 1 | . 7 . . Ballistic Gun 1 | . 7 . . Impact Weapon 24 | . 12 28 28 Peak Build Rating 9 | 6 9 9 8 Average Rating 7 | 4 7 8 7 On Entrance 5 | . 6 7 8 Naked Turns . | . . . . Heaviest Build 16 | 14 16 11 11 Greatest Support 20 | 20 20 12 6 Greatest Overweight (x) 3 | . 2 1 3 Average Overweight (x) . | . . . 1 Largest Inventory Capacity 8 | 8 8 5 5 Average Capacity 5 | 6 7 5 5 Most Carried 8 | 3 8 5 5 Average Carried 4 | 1 4 5 5 Final Capacity 8 | 8 5 5 5 Final Carried 5 | 2 5 5 5 Class Distribution -------------------- 100% | Mutant Dominant Class ---------------- Mutant | -10/Materials Mutant | -10/Mines Mutant | -10/Exiles Resources | -11 -10 -10 -10 ----------- Run | Yrd Mat Min Exi Matter Collected 310 | 239 . 71 . Remotely . | . . . . Salvage Created 247 | . . 228 19 Parts 7 | . . 7 . Haulers Intercepted . | . . . . Recyclers Shooed . | . . . . Parts Field Recycled . | . . . . Retrieved Matter . | . . . . Parts Self-Destructed . | . . . . Prevented . | . . . . Kills | -11 -10 -10 -10 ------- Run | Yrd Mat Min Exi Combat Hostiles Destroyed 5 | . . 4 1 Melee 2 | . . 2 . Classes Destroyed 5 | . . 4 1 Worker 1 | . . 1 . Builder 1 | . . 1 . Tunneler 2 | . . 2 . Grunt 4 | . . 4 . Assembled 2 | . . . 2 Best Kill Streak 4 | . . 4 1 Combat Bots Only 2 | . . 2 1 Max Kills in Single Turn 1 | . . 1 1 Gunslinging . | . . . . Exploded . | . . . . Melee 1 | . . 1 . Uniques/NPCs Destroyed . | . . . . Combat | -11 -10 -10 -10 -------- Run | Yrd Mat Min Exi Hostile Shots Fired 53 | . 1 10 42 Missed 11 | . . 1 10 Damage Taken 610 | . 10 117 483 Core 257 | . . 48 209 Absorbed by Shields . | . . . . Core Remaining (%) 100 | 100 . . . Volleys Fired . | . . . . Largest . | . . . . Hottest . | . . . . Shots Fired . | . . . . Gun . | . . . . Cannon . | . . . . Launcher . | . . . . Special . | . . . . Kinetic . | . . . . Thermal . | . . . . Explosive . | . . . . Electromagnetic . | . . . . Robot Hit Streak . | . . . . Robot Miss Streak . | . . . . Penetration Max . | . . . . Secondary Targets . | . . . . Shots Hit Robots 16 | . . 11 5 Core Hits 2 | . . 2 . Critical Kills . | . . . . Critical Parts Destroyed 1 | . . 1 . Critical Strikes 1 | . . 1 . Smash 1 | . . 1 . Melee Attacks 25 | . . 17 8 Impact 25 | . . 17 8 Slashing . | . . . . Piercing . | . . . . Sneak Attacks 5 | . . 4 1 Combat Hostiles . | . . . . Follow-up Attacks 3 | . . 2 1 Damage Inflicted 980 | . . 645 335 Guns . | . . . . Cannons . | . . . . Explosions . | . . . . Melee 980 | . . 645 335 Ramming . | . . . . Kinetic . | . . . . Thermal . | . . . . Explosive . | . . . . Electromagnetic . | . . . . Impact 980 | . . 645 335 Slashing . | . . . . Piercing . | . . . . Highest Corruption . | . . . . Average Corruption . | . . . . Corruption Purged . | . . . . Corruption Blocked . | . . . . Overload Shots . | . . . . Overflow Damage 382 | . . 296 86 Projectiles . | . . . . Explosions . | . . . . Melee 382 | . . 296 86 Knockbacks 3 | . . 1 2 Impact 3 | . . 1 2 Kinetic . | . . . . Secondary . | . . . . Self-Inflicted Damage . | . . . . Shots . | . . . . Rammed . | . . . . Targets Rammed . | . . . . Kicked . | . . . . Crushed . | . . . . Highest Temperature 5 | . . . 5 Average Temperature 4 | . . . 4 Received Heat Transfer 146 | . . 66 80 Siege Activations . | . . . . Robots Corrupted 3 | . . 2 1 Combat Hostiles 3 | . . 2 1 Parts Fried 9 | . . 9 . Impact Corruptions 12 | . . 9 3 Robots Melted . | . . . . Combat Hostiles . | . . . . Parts Melted . | . . . . Heat Transferred . | . . . . Parts Sabotaged . | . . . . Parts Stolen . | . . . . Parts Stripped . | . . . . Power Chain Reactions . | . . . . Alert | -11 -10 -10 -10 ------- Run | Yrd Mat Min Exi Peak Influence 125 | . . 125 . Initial . | . . . . Average 48 | . . 77 . Maximum Alert Level . | . . . . Low Security (%) 100 | 100 100 100 . Level 1 . | . . . . Level 2 . | . . . . Level 3 . | . . . . Level 4 . | . . . . Level 5 . | . . . . High Security . | . . . . Max Security . | . . . . Squads Dispatched . | . . . . Investigation . | . . . . Extermination . | . . . . Reinforcement . | . . . . Assault . | . . . . Garrison . | . . . . Intercept . | . . . . Searches Triggered . | . . . . Construction Impeded . | . . . . Haulers Reinforced . | . . . . Active Scanning Responses . | . . . . Cargo Convoy Interrupts . | . . . . Stealth | -11 -10 -10 -10 --------- Run | Yrd Mat Min Exi Distress Signals . | . . . . Communications Jammed . | . . . . Distress Signals . | . . . . Times Spotted 12 | . 1 4 7 Peak Tracking Total 8 | . 3 2 8 Tactical Retreats . | . . . . Traps | -11 -10 -10 -10 ------- Run | Yrd Mat Min Exi Traps Triggered . | . . . . Indirectly . | . . . . Trap Hack Attempts . | . . . . Triggered . | . . . . Disarmed . | . . . . Reprogrammed . | . . . . Reused . | . . . . Traps Extracted . | . . . . Installed . | . . . . Triggered . | . . . . Machines | -11 -10 -10 -10 ---------- Run | Yrd Mat Min Exi Machines Disabled 2 | . . 1 1 Max in Single Turn 1 | . . 1 1 Machines Repaired . | . . . . Machines Dismantled . | . . . . Machines Sabotaged . | . . . . Overloaded Fab Kills . | . . . . Hacking | -11 -10 -10 -10 --------- Run | Yrd Mat Min Exi Machines Accessed 1 | . 1 . . Terminals . | . . . . Fabricators . | . . . . Repair Stations . | . . . . Recycling Units 1 | . 1 . . Scanalyzers . | . . . . Garrison Access . | . . . . Total Hacks 1 | . 1 . . Successful 1 | . 1 . . Failed . | . . . . Catastrophic . | . . . . Database Lockouts . | . . . . Manual . | . . . . Terminals . | . . . . Fabricators . | . . . . Repair Stations . | . . . . Recycling Units 1 | . 1 . . Scanalyzers . | . . . . Garrison Access . | . . . . Terminal Hacks . | . . . . Fabricator Hacks . | . . . . Repair Station Hacks . | . . . . Recycling Unit Hacks 1 | . 1 . . Report Inventory 1 | . 1 . . Scanalyzer . | . . . . Garrison Access Hacks . | . . . . Unauthorized Hacks . | . . . . Terminals . | . . . . Fabricators . | . . . . Repair Stations . | . . . . Recycling Units . | . . . . Scanalyzers . | . . . . Garrison Access . | . . . . Data Cores Recovered . | . . . . Used . | . . . . Hacking Detections 1 | . 1 . . Full Trace Events . | . . . . Feedback Events . | . . . . Feedback Blocked . | . . . . Robot Schematics Acquired . | . . . . Robots Built . | . . . . Authchips . | . . . . Time . | . . . . Total Robot Build Rating . | . . . . Part Schematics Acquired . | . . . . Parts Built . | . . . . Authchips . | . . . . Time . | . . . . Total Part Build Rating . | . . . . Parts Repaired . | . . . . Time . | . . . . Parts Recycled . | . . . . Recycled Matter . | . . . . Retrieved Matter . | . . . . Retrieved Components . | . . . . Parts Scanalyzed . | . . . . Part Schematics Acquired . | . . . . Parts Damaged . | . . . . Bothacking | -11 -10 -10 -10 ------------ Run | Yrd Mat Min Exi Used RIF Installer . | . . . . Robots Hacked . | . . . . Non-combat . | . . . . Combat . | . . . . Robot Hacks Applied . | . . . . Relay Couplers Released . | . . . . Fabnet Peak Effective % . | . . . . Robots Rewired . | . . . . Allies Hacked . | . . . . Hacks Repelled . | . . . . Allies | -11 -10 -10 -10 -------- Run | Yrd Mat Min Exi Total Allies . | . . . . Largest Group . | . . . . Highest-Rated Group . | . . . . Highest-Rated Ally . | . . . . Total Orders . | . . . . Ally Attacks . | . . . . Total Damage . | . . . . Kills . | . . . . Allies Corrupted . | . . . . Allies Melted . | . . . . Intel | -11 -10 -10 -10 ------- Run | Yrd Mat Min Exi Robot Analysis Total . | . . . . Derelict Logs Recovered 1 | . . 1 . Drone Launches . | . . . . Drone Recoveries . | . . . . Exploration | -11 -10 -10 -10 ------------- Run | Yrd Mat Min Exi Turns Passed 510 | 48 106 258 98 Spaces Moved 467 | 44 113 243 67 Core 4 | 3 . . 1 Treads . | . . . . Legs . | . . . . Wheels 134 | 41 93 . . Hover 329 | . 20 243 66 Flight . | . . . . Fastest Speed 50 | 50 56 56 120 Average Speed 89 | 77 76 88 121 Slowest Speed 200 | 80 180 120 200 Overloaded Moves . | . . . . Propulsion Burnouts . | . . . . Robots Hopped . | . . . . Cave-ins Triggered . | . . . . Exploration Rate (%) 24 | 3 25 49 22 Regions Visited 3 Branch Regions 2 Pre-discovered Areas 1 | . . 1 . Known Exits Taken . | . . . . Unknown Exits Taken 3 | 1 1 1 . Scrap Searched 1 | . . 1 . Spaces Dug . | . . . . Terrain Destroyed . | . . . . Melee . | . . . . Projectile . | . . . . AOE . | . . . . Terrain Rammed . | . . . . Walls Destroyed . | . . . . Machines Disabled . | . . . . Actions | -11 -10 -10 -10 --------- Run | Yrd Mat Min Exi Total 537 | 57 134 270 76 Wait 12 | . . 12 . Move 464 | 43 112 242 67 Hop . | . . . . Pick Up 17 | 8 9 . . Fast Attach 3 | . 2 1 . Attach 6 | 6 . . . Detach . | . . . . Swap 2 | . 2 . . Drop 10 | . 9 1 . Fire . | . . . . Melee 21 | . . 14 7 Ram . | . . . . Kick . | . . . . Crush . | . . . . Escape Stasis . | . . . . Rewire 2 | . . . 2 Trap . | . . . . Miscellaneous . | . . . . Route ------- -11/Scrapyard -10/Materials (discovered 2 exits: [*Mat] / [*Min]) -10/Mines (discovered 2 exits: [*Mat] / [*Exi]) -10/Exiles (discovered 1 exit: [*Min]) History --------- Turn | Location | Event 16 | -11/Scrapyard | Discovered new exit (range 16) 49 | -11/Scrapyard | Entered Materials 85 | -10/Materials | Discovered new exit (range 16) 147 | -10/Materials | Discovered new exit (range 16) 155 | -10/Materials | Entered Mines 185 | -10/Mines | A weapon hastily lodged in a ceiling crevice suddenly fell to the ground 201 | -10/Mines | Discovered new exit (range 5) 302 | -10/Mines | Build established: Mutant 355 | -10/Mines | Learned location of Mines (-9) 408 | -10/Mines | Deemed a non-threat by the Exiles lab entrance 408 | -10/Mines | Discovered new exit (range 5) 413 | -10/Mines | Entered Exiles 433 | -10/Exiles | Discovered new exit (range 15) 452 | -10/Exiles | Met 8R-AWN 470 | -10/Exiles | Met EX-HEX 496 | -10/Exiles | Attacked by the Exiles 507 | -10/Exiles | Core integrity fell below 50% 511 | -10/Exiles | Core integrity fell below 20% 511 | -10/Exiles | Destroyed by as-15426 with Assembled Rifle Last Messages --------------- 00499_ Maul follow-up attack on as-62050. 00499_ Knocked back. 00500_ as-37004 system terminally corrupted. 00500_ Penetrated by HV Slug. 00500_ HV Slug penetrates Machine. 00505_ as-66703 knocked back. 00506_ Penetrated by HV Slug. 00506_ HV Slug penetrates Wall. 00506_ Penetrated by HV Slug. 00506_ Critical hit (Destroy). 00506_ Ion Engine destroyed. 00506_ HV Slug penetrates Wall. 00508_ Penetrated by HV Slug. 00508_ HV Slug penetrates Wall. 00508_ HV Slug penetrates Machine. 00508_ Machine disabled. 00508_ HV Slug penetrates Machine. 00510_ Penetrated by HV Slug. 00510_ HV Slug penetrates Wall. 00510_ Maul destroyed. Map ----- +----------------------------------------------------+ | ?????????????????????????????????????????????????? | | ?????????????????????????????????????????????????? | | ?????????????????????????????????????????????????? | | ??????????????????????###????????????????????????? | | ???????????????###"?"""""""##????????????????????? | | ?????????????? " """ """"##???????????????????? | | ?????????????? "" " #???????????????????? | | ????????????? " """#???????????????????? | | ????????????? " "#???????????#####???? | | ????????????? " "##?????????##" #???? | | ???????????? ""###???????#" #???? | | ???????????? """#??????##" ##??? | | ??????????? "#????### ###? | | ?????????????"" ##???# ## | | ??????????????"" ##?## # | | ?????????????"""" ### | | ?????????????"" g ## | | ???????????#"""" #### | | ???????????" ""#?#"""""# | | ?????????? #"""##?####### | | ?????????? ######????????? | | ?????????? c ##?????????????? | | ?????????? " aa ##??????????????? | | ???????????"" """ aa #???????????????? | | ????????????"" " " ""#"%a ##???????????????? | | ??????????????#""" """## @" ""##????????????????? | | ????????????????#""""??#;#######?????????????????? | | ??????????????????????# ##???????????????????????? | | ??????????????????????##?????????????????????????? | | ?????????????????????????????????????????????????? | | ?????????????????????????????????????????????????? | | ?????????????????????????????????????????????????? | | ?????????????????????????????????????????????????? | | ?????????????????????????????????????????????????? | | ?????????????????????????????????????????????????? | | ?????????????????????????????????????????????????? | | ?????????????????????????????????????????????????? | | ?????????????????????????????????????????????????? | | ?????????????????????????????????????????????????? | | ?????????????????????????????????????????????????? | | ?????????????????????????????????????????????????? | | ?????????????????????????????????????????????????? | | ?????????????????????????????????????????????????? | | ?????????????????????????????????????????????????? | | ?????????????????????????????????????????????????? | | ?????????????????????????????????????????????????? | | ?????????????????????????????????????????????????? | | ?????????????????????????????????????????????????? | | ?????????????????????????????????????????????????? | | ?????????????????????????????????????????????????? | +----------------------------------------------------+ Best States ------------- Heat Dissipation 25 Energy Generation 10 Energy Capacity 250 Matter Stores 300 Matter Capacity 300 Sight Range 16 Terrain Scan Density 10 Evasion (%) 53 Item Schematics ----------------- None Robot Schematics ------------------ None Fabricated ------------ Nothing Alien Tech Used ----------------- None Achievements -------------- None Challenges ------------ None Game ------ Seed ConcussiveActiveWheel Manual? 0 Play Time 00:12:37 Cumulative 99.1 hours Start 2025.03.04 @ 17:21:28 End 2025.03.04 @ 17:32:30 Sessions 1 Manual Loads 0 Difficulty Rogue Special Mode None Game No. 68 Rogue 68 Adventurer 0 Explorer 0 Win Type - Total 0 Types 0/0/0/0/0/0/0/0/0 Lore% 28 Gallery% 46 Achievement% 38 Wizard Run 0 Options --------- Layout 1 ASCII 0 Keyboard 0 Movement Numpad Keybinds 0 Fullscreen 0 Font 28/SmallcapsGlow Map View 59x39 Zoom Use 0% Tactical HUD 1 Map Filters NONE Filters NONE Steam 1 RUN: 87d1e6cf-9905-44ab-b772-68cc58c34a3d